fUST/lending_fUST_20250811
["ID","MTS","AMOUNT","RATE_DAILY","PERIOD"]
[378533486,1754903449890,-151.0,0.000276,7]
[378533488,1754903449899,-364.938072,0.000276,7]
[378533491,1754903449909,-364.938072,0.000276,7]
[378533492,1754903449919,-151.0,0.000276,7]
[378533495,1754903449928,-151.0,0.000276,7]
[378533497,1754903449938,-151.0,0.000276,7]
[378533498,1754903449947,-151.0,0.000276,7]
[378533500,1754903449957,-151.0,0.000276,7]
[378533502,1754903449967,-151.0,0.000276,7]
[378533504,1754903449976,-151.0,0.000276,7]
[378533506,1754903449985,-330.851879,0.000276,7]
[378533508,1754903449995,-330.851879,0.000276,7]
[378533510,1754903450005,-823.216676,0.000276,7]
[378533511,1754903450014,-823.216676,0.000276,7]
[378533512,1754903450023,-424.953675,0.000276,7]
[378533513,1754903450032,-424.953675,0.000276,7]
[378533514,1754903450042,-160.805127,0.000276,7]
[378533516,1754903450051,-73562.28,0.000276,7]
[378533518,1754903450060,-151.0,0.000276,7]
[378533520,1754903450070,-151.0,0.000276,7]
[378533522,1754903450079,-216.473572,0.000276,7]
[378533523,1754903450088,-500.0,0.0002764,2]
[378533524,1754903450098,-159.0,0.00027671,14]
[378533526,1754903450107,-500.0,0.00027672,2]
[378533527,1754903450116,-500.0,0.00027672,2]
[378533529,1754903450125,-500.0,0.00027672,2]
[378533530,1754903450135,-152.3066297,0.00027672,2]
[378533531,1754903450144,-500.0,0.00027672,2]
[378533532,1754903450153,-211.92498305,0.00027672,2]
[378533533,1754903450162,-151.0,0.00027672,2]
[378533534,1754903450171,-500.0,0.00027672,2]
[378533535,1754903450180,-500.0,0.00027672,2]
[378533536,1754903450189,-500.0,0.00027672,2]
[378533537,1754903450199,-151.0,0.00027672,2]
[378533538,1754903450208,-500.0,0.00027672,2]
[378533539,1754903450217,-544.23939778,0.00027672,2]
[378533540,1754903450226,-151.0,0.00027672,2]
[378533541,1754903450235,-151.0,0.00027672,2]
[378533542,1754903450244,-500.0,0.00027672,2]
[378533543,1754903450253,-151.0,0.00027672,2]
[378533544,1754903450263,-500.0,0.00027672,2]
[378533545,1754903450272,-500.0,0.00027672,2]
[378533546,1754903450281,-151.0,0.00027672,2]
[378533547,1754903450290,-151.0,0.00027672,2]
[378533548,1754903450301,-151.0,0.00027672,2]
[378533549,1754903450310,-277.88573075,0.00027672,2]
[378533550,1754903450320,-152.0364052,0.00027672,2]
[378533551,1754903450329,-151.0,0.00027672,2]
[378533552,1754903450338,-560.35408176,0.00027672,2]
[378533553,1754903450347,-500.0,0.00027672,2]
[378533554,1754903450357,-198.0,0.00027672,2]
[378533555,1754903450366,-500.0,0.00027672,2]
[378533556,1754903450375,-500.0,0.00027672,2]
[378533557,1754903450384,-4000.0,0.00027695,4]
[378533558,1754903450393,-1260.0,0.00027702,2]
[378533559,1754903450402,-600.0,0.00027716,5]
[378533560,1754903450411,-160.0,0.00027731,12]
[378533561,1754903450420,-151.0,0.0002775,7]
[378533562,1754903450429,-151.0,0.0002775,7]
[378533563,1754903450439,-151.0,0.0002775,7]
[378533564,1754903450449,-364.938072,0.0002775,7]
[378533565,1754903450459,-364.938072,0.0002775,7]
[378533566,1754903450474,-151.0,0.0002775,7]
[378533567,1754903450484,-151.0,0.0002775,7]
[378533568,1754903450493,-151.0,0.0002775,7]
[378533569,1754903450503,-151.0,0.0002775,7]
[378533570,1754903450512,-151.0,0.0002775,7]
[378533571,1754903450521,-154.499657,0.0002775,7]
[378533572,1754903450531,-151.0,0.0002775,7]
[378533573,1754903450540,-330.851879,0.0002775,7]
[378533574,1754903450549,-330.851879,0.0002775,7]
[378533575,1754903450559,-823.216676,0.0002775,7]
[378533576,1754903450568,-823.216676,0.0002775,7]
[378533577,1754903450577,-424.953675,0.0002775,7]
[378533578,1754903450587,-424.953675,0.0002775,7]
[378533579,1754903450596,-462.539775,0.0002775,7]
[378533580,1754903450605,-462.539775,0.0002775,7]
[378533581,1754903450614,-154.618328,0.0002775,7]
[378533582,1754903450624,-151.0,0.0002775,7]
[378533583,1754903450633,-2656.31004568,0.00027808,5]
[378533584,1754903451295,3101.49092056,0.000199,2]
[378533585,1754903451361,-625.62698806,0.00021655,2]
[378533586,1754903451372,-2475.86393239,0.00021655,2]
[378533587,1754903451382,-151.0,0.00021987,2]
[378533588,1754903451391,-151.0,0.00021987,2]
[378533589,1754903451400,-2476.75574321,0.00023409,2]
[378533590,1754903452849,-1211.39890278,0.00019941,2]
[378533591,1754903453307,-2469.614968,0.00019941,2]
[378533596,1754903574721,327.98513504,0.00019844,2]
[378533597,1754903576088,-269.06865637,0.00019941,2]
[378533598,1754903581175,-209.58761311,0.00019941,2]
[378533599,1754903586189,-309.92247964,0.00019941,2]
[378533600,1754903589137,-270.92086263,0.00019941,2]
[378533601,1754903593671,-181.64020435,0.00019941,2]
[378533602,1754903597033,-77.84631312,0.00019941,2]
[378533603,1754903604310,907.78290303,0.00019901,2]
[378533604,1754903604333,4092.21709697,0.00019901,2]
[378533605,1754903620612,3417.87516607,0.000199,2]
[378533606,1754903795664,3353.96057059,0.000199,2]
[378533607,1754903809125,9135.94716637,0.00019102,2]
[378533608,1754903809147,15764.05283363,0.00019102,2]
[378533609,1754903866852,396.31537146,0.00019842,2]
[378533611,1754903873802,363.613201,0.00013699,2]
[378533612,1754903943856,206.62009121,0.00019841,2]
[378533613,1754903967172,3000.0,0.00030136,120]
[378533614,1754903972764,3269.3985027,0.000199,2]
[378533615,1754903972788,297.36600302,0.000199,2]
[378533616,1754903987129,357.597223,0.00019343,2]
[378533617,1754903987460,222.2797696,0.00019344,2]
[378533618,1754903996218,-338.12538057,0.0001992,2]
[378533619,1754904000886,-195.92608958,0.0001992,2]
[378533620,1754904004875,-157.95899934,0.0001992,2]
[378533621,1754904007340,-14.66297475,0.0001992,2]
[378533622,1754904007363,-189.5078021,0.00019931,2]
[378533623,1754904007388,-133.08827653,0.0001994,2]
[378533624,1754904010083,-159.30022003,0.0001994,2]
[378533625,1754904012112,-7.61150344,0.0001994,2]
[378533626,1754904012136,-300.0,0.0001994,2]
[378533627,1754904012158,-104.23838834,0.0001994,2]
[378533628,1754904015342,-160.37135132,0.0001994,2]
[378533629,1754904017329,-35.39026034,0.0001994,2]
[378533630,1754904017352,-125.87212317,0.0001994,2]
[378533631,1754904022003,-460.0,0.0001994,2]
[378533632,1754904024415,-277.42843958,0.0001994,2]
[378533633,1754904029212,-158.1403479,0.0001994,2]
[378533634,1754904033767,-178.55908935,0.0001994,2]
[378533635,1754904057668,-167.02182767,0.0001994,2]
[378533636,1754904061269,-152.7871726,0.0001994,2]
[378533637,1754904064362,-205.45888616,0.00019939,2]
[378533638,1754904066118,-94.54111384,0.00019939,2]
[378533639,1754904066143,-180.19099973,0.0001994,2]
[378533640,1754904066166,-126.58387771,0.0001994,2]
[378533641,1754904070254,-211.99548861,0.0001994,2]
[378533642,1754904072042,-183.31977885,0.0001994,2]
[378533643,1754904072063,-101.2896008,0.0001994,2]
[378533644,1754904077484,-257.59637344,0.0001994,2]
[378533645,1754904080670,-141.11402576,0.0001994,2]
[378533646,1754904080692,-109.74302843,0.0001994,2]
[378533647,1754904087680,-189.01050605,0.0001994,2]
[378533648,1754904097075,-173.68711274,0.0001994,2]
[378533649,1754904100644,-167.74362123,0.00019939,2]
[378533650,1754904102325,-340.49930046,0.00019939,2]
[378533651,1754904107129,-271.67294127,0.00019939,2]
[378533652,1754904109037,-299.62864868,0.00019939,2]
[378533653,1754904112012,-4.45548836,0.00019939,2]
[378533654,1754904112034,-27.55935278,0.0001994,2]
[378533655,1754904112058,-219.27515886,0.0001994,2]
[378533656,1754904114221,-194.10655001,0.0001994,2]
[378533657,1754904119124,-86.61829113,0.0001994,2]
[378533658,1754904119146,-211.92183308,0.0001994,2]
[378533659,1754904119169,-37.54302495,0.0001994,2]
[378533660,1754904124488,-300.0,0.00019939,2]
[378533661,1754904124694,-147.46350591,0.0001994,2]
[378533670,1754904130092,-108.51415297,0.0001994,2]
[378533671,1754904130114,-161.10308367,0.0001994,2]
[378533672,1754904130136,-70.5355182,0.0001994,2]
[378533673,1754904133193,-374.81830604,0.0001994,2]
[378533674,1754904136365,-54.64617576,0.0001994,2]
[378533675,1754904136388,-162.24497671,0.0001994,2]
[378533676,1754904143296,-337.75502329,0.0001994,2]
[378533677,1754904143318,-174.24412036,0.0001994,2]
[378533678,1754904147064,456.10432838,0.0001984,2]
[378533679,1754904147357,3447.87235551,0.000199,2]
[378533680,1754904149655,-317.00405768,0.0001994,2]
[378533681,1754904152052,-8.75182196,0.0001994,2]
[378533682,1754904152075,-202.27741834,0.0001994,2]
[378533683,1754904154756,-297.72258166,0.0001994,2]
[378533684,1754904154778,-12.77998631,0.0001994,2]
[378533685,1754904156791,-253.51934609,0.0001994,2]
[378533686,1754904158717,-173.37934029,0.0001994,2]
[378533687,1754904160991,-247.39288583,0.00019939,2]
[378533688,1754904164581,-252.60711417,0.00019939,2]
[378533689,1754904164603,-133.92175274,0.00019939,2]
[378533690,1754904168029,-265.32231611,0.00019939,2]
[378533691,1754904173281,-30.69914253,0.00019939,2]
[378533692,1754904173308,-181.29674178,0.00019939,2]
[378533693,1754904173330,-98.18032112,0.00019939,2]
[378533694,1754904174890,-307.1041878,0.00019939,2]
[378533695,1754904178336,-94.71549108,0.00019939,2]
[378533696,1754904178359,-111.39441627,0.00019939,2]
[378533697,1754904180539,-254.0049634,0.00019939,2]
[378533698,1754904183364,-134.60062033,0.00019939,2]
[378533699,1754904183386,-166.91695085,0.00019939,2]
[378533700,1754904186312,-246.49216065,0.00019938,2]
[378533701,1754904189880,-53.50783935,0.00019938,2]
[378533702,1754904189903,-227.33216717,0.00019939,2]
[378533703,1754904195228,-105.75088198,0.00019939,2]
[378533704,1754904195252,-142.25362941,0.00019939,2]
[378533705,1754904196990,-181.57891722,0.00019939,2]
[378533706,1754904198993,-176.16745337,0.00019939,2]
[378533707,1754904199015,-33.04704356,0.00019939,2]
[378533708,1754904202373,-157.20462621,0.00019939,2]
[378533709,1754904205879,-176.94732526,0.00019939,2]
[378533710,1754904208996,-165.84804853,0.00019939,2]
[378533711,1754904209017,-2.31025122,0.00019939,2]
[378533712,1754904210626,-153.10607926,0.00019939,2]
[378533713,1754904210649,-60.89006672,0.00019939,2]
[378533714,1754904217107,-240.48863818,0.00019939,2]
[378533715,1754904221294,-198.6212951,0.00019939,2]
[378533716,1754904221319,-67.00094528,0.00019939,2]
[378533717,1754904224089,-192.99594591,0.00019939,2]
[378533718,1754904224111,-121.99170901,0.00019939,2]
[378533719,1754904225667,-167.8616455,0.00019939,2]
[378533720,1754904231225,-210.74264278,0.00019939,2]
[378533792,1754904236280,-278.35458977,0.00019939,2]
[378533936,1754904240476,-162.50916648,0.00019939,2]
[378533978,1754904242187,-175.52180202,0.00019939,2]
[378534022,1754904246312,-175.38547243,0.00019938,2]
[378534023,1754904249249,-124.61452757,0.00019938,2]
[378534024,1754904249271,-300.0,0.00019938,2]
[378534025,1754904249292,-26.49277306,0.00019939,2]
[378534026,1754904252830,-215.28387796,0.00019939,2]
[378534027,1754904254541,-234.07192821,0.00019939,2]
[378534028,1754904260317,-305.52074233,0.00019939,2]
[378534029,1754904261974,-164.70161008,0.00019939,2]
[378534030,1754904269451,-436.02477421,0.00019939,2]
[378534031,1754904271792,-231.00888157,0.00019939,2]
[378534032,1754904279177,-231.55265458,0.00019938,2]
[378534033,1754904285093,-268.44734542,0.00019938,2]
[378534034,1754904285117,-33.16749966,0.00019938,2]
[378534035,1754904294423,-187.39134532,0.00019938,2]
[378534036,1754904302533,-279.44115502,0.00019938,2]
[378534037,1754904302555,-76.1622489,0.00019938,2]
[378534038,1754904307376,-300.0,0.00019937,2]
[378534039,1754904307405,-48.54002894,0.00019937,2]
[378534040,1754904310819,-157.673782,0.00019937,2]
[378534041,1754904312926,-93.78618906,0.00019937,2]
[378534042,1754904312949,-258.68358568,0.00019937,2]
[378534043,1754904315751,-41.31641432,0.00019937,2]
[378534044,1754904315776,-164.54634009,0.00019937,2]
[378534045,1754904320629,-190.05439835,0.00019937,2]
[378534046,1754904322724,3332.94327679,0.000199,2]
[378534047,1754904325234,-286.31288726,0.00019937,2]
[378534064,1754904327634,-281.23141627,0.00019937,2]
[378534352,1754904334968,5000.0,0.00019901,2]
[378534353,1754904335556,-211.48862669,0.00019937,2]
[378534354,1754904340159,-66.36633134,0.00019937,2]
[378534355,1754904340184,-147.2163511,0.00019938,2]
[378534356,1754904342655,-276.6214,0.00019938,2]
[378534357,1754904342678,-30.00182877,0.00019938,2]
[378534358,1754904347304,-346.31304522,0.00019938,2]
[378534359,1754904350765,-123.68512601,0.00019938,2]
[378534360,1754904350791,-114.07536882,0.00019938,2]
[378534361,1754904351454,5000.0,0.00019901,2]
[378534362,1754904353628,-338.9661142,0.00019938,2]
[378534363,1754904354843,150.0,0.000189,2]
[378534364,1754904359591,-46.95851698,0.00019938,2]
[378534365,1754904359613,-129.85799276,0.00019938,2]
[378534370,1754904368456,-193.16476868,0.00019937,2]
[378534372,1754904373063,-106.83523132,0.00019937,2]
[378534373,1754904373086,-93.71436538,0.00019938,2]
[378534374,1754904375682,-273.17072867,0.00019938,2]
[378534375,1754904383904,-3.25691319,0.00019938,2]
[378534376,1754904383929,-345.09775006,0.00019938,2]
[378534377,1754904386842,-154.90224994,0.00019938,2]
[378534378,1754904386866,-263.59378805,0.00019938,2]
[378534379,1754904389117,-106.39919412,0.00019938,2]
[378534380,1754904389141,-196.39080865,0.00019938,2]
[378534382,1754904394471,-303.60919135,0.00019938,2]
[378534383,1754904394493,-167.1217148,0.00019938,2]
[378534384,1754904397433,-194.5295507,0.00019937,2]
[378534385,1754904400868,-167.36677087,0.00019937,2]
[378534386,1754904403399,-151.68918627,0.00019937,2]
[378534387,1754904405856,-272.89652525,0.00019937,2]
[378534388,1754904408990,-350.65328512,0.00019937,2]
[378534389,1754904410907,508.41966565,0.00019838,2]
[378534390,1754904413377,-62.86468179,0.00019937,2]
[378534391,1754904413399,-118.85273208,0.00019937,2]
[378534392,1754904416185,-295.56025999,0.00019937,2]
[378534393,1754904418668,-81.17273412,0.00019937,2]
[378534394,1754904418691,-98.65000064,0.00019937,2]
[378534395,1754904420209,-288.45,0.00019937,2]
[378534396,1754904423067,-112.89999936,0.00019937,2]
[378534397,1754904423092,-88.04881173,0.00019937,2]
[378534490,1754904428243,-241.81194583,0.00019936,2]
[378534528,1754904431432,-58.18805417,0.00019936,2]
[378534529,1754904431455,-115.26326534,0.00019936,2]
[378534531,1754904435099,-120.73673466,0.00019936,2]
[378534532,1754904435123,-86.24528988,0.00019937,2]
[378534533,1754904438117,-422.23493326,0.00019937,2]
[378534535,1754904441831,-184.06127989,0.00019937,2]
[378534536,1754904444697,-300.0,0.00019937,2]
[378534537,1754904446418,-297.30091409,0.00019937,2]
[378534538,1754904449015,-309.47628448,0.00019937,2]
[378534539,1754904453256,-253.51732092,0.00019937,2]
[378534540,1754904456109,-275.98493414,0.00019937,2]
[378534541,1754904461526,-250.53765171,0.00019937,2]
[378534542,1754904466489,-196.55540662,0.00019937,2]
[378534543,1754904469547,-276.27078996,0.00019937,2]
[378534544,1754904475848,-272.99329005,0.00019937,2]
[378534545,1754904477612,-215.7222968,0.00019937,2]
[378534546,1754904480538,-258.99714774,0.00019937,2]
[378534556,1754904482302,-182.20480675,0.00019937,2]
[378534671,1754904485812,-163.81959449,0.00019936,2]
[378534672,1754904487573,-136.18040551,0.00019936,2]
[378534673,1754904487594,-226.23676167,0.00019937,2]
[378534674,1754904491474,-160.19547137,0.00019937,2]
[378534675,1754904493637,304.24,0.00028,30]
[378534677,1754904496939,-319.00616755,0.00019937,2]
[378534680,1754904499056,272.953473,0.00018959,2]
[378534681,1754904499658,954.46390505,0.000199,2]
[378534682,1754904499683,2451.91860612,0.000199,2]
[378534683,1754904501515,-521.64037147,0.00019937,2]
[378534685,1754904506199,-332.54530562,0.00019937,2]
[378534687,1754904507782,304.23,0.00028,30]
[378534690,1754904518586,17548.08139388,0.00018,2]
[378534691,1754904518609,20000.0,0.00018,2]
[378534692,1754904518629,20000.0,0.00018,2]
[378534693,1754904518652,8429.94765731,0.00018,2]
[378534695,1754904536043,5000.0,0.00019901,2]
[378534702,1754904596992,554.19558584,0.0001982,2]
[378534763,1754904632639,-1053.86682041,0.00019918,2]
[378534770,1754904632695,-146.13317959,0.00019918,2]
[378534772,1754904632706,-300.0,0.00019919,2]
[378534775,1754904632715,-216.29681218,0.00019919,2]
[378534812,1754904638303,-83.70318782,0.00019919,2]
[378534813,1754904638313,-300.0,0.00019919,2]
[378534814,1754904638324,-300.0,0.00019919,2]
[378534815,1754904638333,-300.0,0.00019919,2]
[378534816,1754904638343,-236.0,0.00019919,2]
[378534817,1754904638353,-500.0,0.00019919,2]
[378534818,1754904638362,-2270.68915393,0.00019919,2]
[378534819,1754904638371,-179.40057422,0.00019919,2]
[378534820,1754904638383,-2091.28857971,0.00019919,2]
[378534821,1754904638392,-500.0,0.00019919,2]
[378534822,1754904638401,-2270.68915393,0.00019919,2]
[378534823,1754904638410,-2270.68915393,0.00019919,2]
[378534824,1754904638420,-268.41437855,0.00019919,2]
[378534825,1754904638429,-2270.68915393,0.00019919,2]
[378534826,1754904638438,-1319.77794558,0.00019919,2]
[378534827,1754904638449,-950.91120835,0.00019919,2]
[378534828,1754904638459,-2270.68915393,0.00019919,2]
[378534829,1754904638468,-836.17729647,0.00019919,2]
[378534831,1754904638479,-1434.51185746,0.00019919,2]
[378534832,1754904638488,-2270.68915393,0.00019919,2]
[378534833,1754904638497,-184.2440608,0.00019919,2]
[378534834,1754904638509,-2086.44509313,0.00019919,2]
[378534835,1754904638518,-2270.68915393,0.00019919,2]
[378534836,1754904638527,-2270.68915393,0.00019919,2]
[378534837,1754904638536,-2270.68915393,0.00019919,2]
[378534838,1754904638545,-2270.68915393,0.00019919,2]
[378534839,1754904638555,-2270.68915393,0.00019919,2]
[378534840,1754904638564,-2270.68915393,0.00019919,2]
[378534841,1754904638573,-332.8782852,0.00019919,2]
[378534842,1754904638582,-500.0,0.00019919,2]
[378534843,1754904638591,-500.0,0.00019919,2]
[378534844,1754904638601,-500.0,0.00019919,2]
[378534845,1754904638610,-500.0,0.00019919,2]
[378534846,1754904638619,-500.0,0.00019919,2]
[378534847,1754904638628,-500.0,0.00019919,2]
[378534848,1754904638637,-500.0,0.00019919,2]
[378534849,1754904638646,-500.0,0.00019919,2]
[378534850,1754904638655,-500.0,0.00019919,2]
[378534851,1754904638664,-607.75536766,0.00019919,2]
[378534852,1754904638673,-385.79888402,0.00019919,2]
[378534853,1754904638682,-500.0,0.00019919,2]
[378534854,1754904638691,-500.0,0.00019919,2]
[378534855,1754904638701,-500.0,0.00019919,2]
[378534856,1754904638710,-500.0,0.00019919,2]
[378534857,1754904638719,-500.0,0.00019919,2]
[378534858,1754904638729,-500.0,0.00019919,2]
[378534859,1754904638738,-500.0,0.00019919,2]
[378534860,1754904638747,-500.0,0.00019919,2]
[378534861,1754904638756,-503.551,0.0001992,2]
[378534862,1754904638765,-2000.0,0.0001992,2]
[378534863,1754904638774,-2000.0,0.0001992,2]
[378534864,1754904638783,-2000.0,0.0001992,2]
[378534865,1754904638792,-2000.0,0.0001992,2]
[378534866,1754904638801,-2000.0,0.0001992,2]
[378534867,1754904638809,-2000.0,0.0001992,2]
[378534868,1754904638818,-2000.0,0.0001992,2]
[378534869,1754904638828,-2000.0,0.0001992,2]
[378534870,1754904638837,-2000.0,0.0001992,2]
[378534871,1754904638846,-2000.0,0.0001992,2]
[378534872,1754904638855,-2000.0,0.0001992,2]
[378534873,1754904638864,-2000.0,0.0001992,2]
[378534874,1754904638873,-2000.0,0.0001992,2]
[378534875,1754904638884,-2000.0,0.0001992,2]
[378534876,1754904638893,-2000.0,0.0001992,2]
[378534877,1754904638903,-2000.0,0.0001992,2]
[378534878,1754904638912,-2000.0,0.0001992,2]
[378534879,1754904638921,-2000.0,0.0001992,2]
[378534880,1754904638931,-2000.0,0.0001992,2]
[378534881,1754904638939,-2000.0,0.0001992,2]
[378534882,1754904638949,-2000.0,0.0001992,2]
[378534883,1754904638958,-2000.0,0.0001992,2]
[378534884,1754904638967,-2000.0,0.0001992,2]
[378534885,1754904638976,-2000.0,0.0001992,2]
[378534886,1754904638985,-2000.0,0.0001992,2]
[378534887,1754904638994,-2000.0,0.0001992,2]
[378534888,1754904639003,-2000.0,0.0001992,2]
[378534889,1754904639012,-2000.0,0.0001992,2]
[378534890,1754904639021,-2000.0,0.0001992,2]
[378534891,1754904639030,-2000.0,0.0001992,2]
[378534892,1754904639039,-2000.0,0.0001992,2]
[378534893,1754904639048,-2000.0,0.0001992,2]
[378534894,1754904639057,-2000.0,0.0001992,2]
[378534895,1754904639066,-585.856,0.0001992,2]
[378534896,1754904639075,-50000.0,0.0001992,2]
[378534897,1754904639084,-156.587,0.00019926,2]
[378534898,1754904639093,-251.93,0.00019927,3]
[378534899,1754904639102,-755.8,0.00019927,3]
[378534900,1754904639112,-160.0,0.00019937,2]
[378534901,1754904639121,-500.0,0.00019937,2]
[378534902,1754904639130,-246.49216065,0.00019939,2]
[378534903,1754904639139,-167.02182767,0.0001994,2]
[378534904,1754904639148,-500.0,0.00019973,2]
[378534905,1754904639158,-500.38511796,0.00019973,2]
[378534906,1754904639167,-500.0,0.00019973,2]
[378534907,1754904639176,-500.0,0.00019973,2]
[378534908,1754904639186,-500.0,0.00019973,2]
[378534909,1754904639195,-500.0,0.00019973,2]
[378534910,1754904639204,-500.0,0.00019973,2]
[378534911,1754904639213,-500.0,0.00019973,2]
[378534912,1754904639222,-500.0,0.00019973,2]
[378534913,1754904639231,-500.0,0.00019973,2]
[378534914,1754904639244,-500.0,0.00019973,2]
[378534915,1754904639253,-500.0,0.00019973,2]
[378534916,1754904639262,-500.0,0.00019973,2]
[378534917,1754904639271,-500.0,0.00019973,2]
[378534918,1754904639282,-500.0,0.00019973,2]
[378534919,1754904639292,-500.0,0.00019973,2]
[378534920,1754904639301,-1007.7,0.0001999,3]
[378534921,1754904639311,-503.85,0.0001999,3]
[378534922,1754904639322,-9403.67305331,0.0002,2]
[378534923,1754904639332,-224.36982195,0.0002,20]
[378534924,1754904639341,-152.29667673,0.0002,7]
[378534925,1754904639350,-364.11032064,0.0002,2]
[378534926,1754904639359,-12003.10339825,0.0002,2]
[378534927,1754904639369,-7237.17604782,0.0002,10]
[378534928,1754904639378,-17001.48056737,0.0002,2]
[378534929,1754904639387,-173.938217,0.00020018,2]
[378534930,1754904639396,-363.613201,0.00020187,2]
[378534931,1754904639406,-4849.03579063,0.00020199,2]
[378534932,1754904639416,-500.0,0.00020211,2]
[378534933,1754904639425,-173.0,0.00020247,3]
[378534934,1754904639435,-1137.9519536,0.00020263,2]
[378534935,1754904639445,-3048.7995056,0.00020299,2]
[378534936,1754904639454,-200.0,0.00020334,15]
[378534937,1754904639463,-200.0,0.00020334,15]
[378534938,1754904639472,-200.0,0.00020334,15]
[378534939,1754904639482,-200.0,0.00020334,15]
[378534940,1754904639491,-200.0,0.00020334,15]
[378534941,1754904639501,-522.12997196,0.00020368,2]
[378534942,1754904639510,-500.0,0.00020485,2]
[378534943,1754904639520,-1000.0,0.00020521,2]
[378534944,1754904639530,-1000.0,0.00020521,2]
[378534945,1754904639540,-1000.0,0.00020521,2]
[378534946,1754904639549,-1000.0,0.00020521,2]
[378534947,1754904639559,-333.11519119,0.00020521,2]
[378534948,1754904639568,-513.42260487,0.00020521,2]
[378534949,1754904639577,-1000.0,0.00020521,2]
[378534950,1754904639587,-1000.0,0.00020521,2]
[378534951,1754904639596,-1000.0,0.00020521,2]
[378534952,1754904639605,-832.03455376,0.00020521,2]
[378534953,1754904639614,-1000.0,0.00020521,2]
[378534954,1754904639623,-1000.0,0.00020521,2]
[378534955,1754904639633,-500.0,0.00020588,2]
[378534956,1754904639642,-500.0,0.00020588,2]
[378534957,1754904639651,-276.8107237,0.00020588,2]
[378534958,1754904639661,-500.0,0.00020588,2]
[378534959,1754904639670,-371.51471519,0.00020588,2]
[378534960,1754904639679,-500.0,0.00020696,2]
[378534961,1754904639689,-500.0,0.00020759,2]
[378534962,1754904639698,-500.0,0.00020973,2]
[378534963,1754904639708,-500.0,0.00020973,2]
[378534964,1754904639717,-516.5355599,0.00020973,2]
[378534965,1754904639726,-500.0,0.00020973,2]
[378534966,1754904639735,-500.0,0.00020973,2]
[378534967,1754904639745,-503.15587219,0.00020973,2]
[378534968,1754904639755,-258.85036039,0.00020973,2]
[378534969,1754904639765,-160.15625833,0.00020973,2]
[378534970,1754904639774,-500.0,0.00020973,2]
[378534971,1754904639784,-500.0,0.00020973,2]
[378534972,1754904639793,-500.0,0.00020973,2]
[378534973,1754904639803,-158.06161699,0.00020973,2]
[378534974,1754904639812,-500.0,0.00020973,2]
[378534975,1754904639821,-500.0,0.00020973,2]
[378534976,1754904639831,-500.0,0.00020973,2]
[378534977,1754904639840,-100000.0,0.0002099,2]
[378534978,1754904639849,-500.0,0.00021033,2]
[378534979,1754904639858,-4849.03579062,0.00021063,2]
[378534980,1754904639867,-1500.0,0.00021068,2]
[378534981,1754904639877,-1500.0,0.00021068,2]
[378534982,1754904639886,-1500.0,0.00021068,2]
[378534983,1754904639896,-1500.0,0.00021068,2]
[378534984,1754904639906,-1504.95308721,0.00021068,2]
[378534985,1754904639915,-1500.0,0.00021068,2]
[378534986,1754904639924,-502.63059083,0.00021068,2]
[378534987,1754904639934,-1500.0,0.00021068,2]
[378534988,1754904639943,-1500.0,0.00021068,2]
[378534989,1754904639952,-300.0,0.00021101,2]
[378534991,1754904639962,-519.63095064,0.00021136,2]
[378534992,1754904639971,-500.0,0.00021244,2]
[378534993,1754904639980,-503.86,0.00021297,3]
[378534994,1754904639989,-500.0,0.00021307,2]
[378534995,1754904639998,-3023.12,0.0002136,3]
[378534996,1754904640008,-2015.4,0.0002136,3]
[378534997,1754904640017,-1007.7,0.0002136,3]
[378534998,1754904640027,-500.0,0.0002144,2]